[Event "Schack-SM 2022: Sverigemastarklassen"]
[Site "Fyrishov, Idrottsgatan 2, Uppsala, Sweden"]
[Date "2022.07.09"]
[Round "8.2"]
[White "Hillarp, Tiger"]
[Black "Carlsson, Ludvig"]
[Result "1/2-1/2"]
[TimeControl "90 minutes for 40 moves + 30 minutes for the rest of the game + 30 seconds per move from move one."]
[WhiteTitle "GM"]
[BlackTitle "IM"]
[WhiteFideId "1700812"]
[BlackFideId "1727010"]
[WhiteElo "2516"]
[BlackElo "2399"]

1. Nf3 {[%clk 01:30:55]} {[%emt 00:00:04]} d5 {[%clk 01:30:42]} {[%emt
00:00:19]} 2. d3 {[%clk 01:28:55]} {[%emt 00:02:30]} Nc6 {[%clk 01:25:50]}
{[%emt 00:05:21]} 3. g3 {[%clk 01:28:01]} {[%emt 00:01:24]} e5 {[%clk
01:25:53]} {[%emt 00:00:27]} 4. Bg2 {[%clk 01:27:57]} {[%emt 00:00:34]} Nf6
{[%clk 01:24:27]} {[%emt 00:01:55]} 5. O-O {[%clk 01:28:02]} {[%emt 00:00:26]}
a5 {[%clk 01:19:12]} {[%emt 00:05:46]} 6. Nc3 {[%clk 01:21:06]} {[%emt
00:07:25]} h6 {[%clk 00:58:09]} {[%emt 00:21:32]} 7. e4 {[%clk 01:00:41]}
{[%emt 00:20:57]} dxe4 {[%clk 00:55:42]} {[%emt 00:02:57]} 8. dxe4 {[%clk
01:00:59]} {[%emt 00:00:12]} Qxd1 {[%clk 00:52:37]} {[%emt 00:03:34]} 9. Rxd1
{[%clk 01:01:19]} {[%emt 00:00:11]} Bd6 {[%clk 00:50:55]} {[%emt 00:02:10]} 10.
h3 {[%clk 00:48:16]} {[%emt 00:13:34]} Be6 {[%clk 00:46:26]} {[%emt 00:04:58]}
11. Be3 {[%clk 00:44:54]} {[%emt 00:03:54]} O-O-O {[%clk 00:35:22]} {[%emt
00:11:33]} 12. a3 {[%clk 00:39:20]} {[%emt 00:06:05]} Be7 {[%clk 00:35:27]}
{[%emt 00:00:24]} 13. Bf1 {[%clk 00:34:49]} {[%emt 00:05:00]} Rxd1 {[%clk
00:29:12]} {[%emt 00:06:47]} 14. Rxd1 {[%clk 00:35:09]} {[%emt 00:00:10]} Rd8
{[%clk 00:29:30]} {[%emt 00:00:11]} 15. Rxd8+ {[%clk 00:34:38]} {[%emt
00:01:01]} Kxd8 {[%clk 00:29:53]} {[%emt 00:00:07]} 16. Bb5 {[%clk 00:27:51]}
{[%emt 00:07:17]} Nd7 {[%clk 00:30:15]} {[%emt 00:00:08]} 17. Bxc6 {[%clk
00:27:35]} {[%emt 00:00:47]} bxc6 {[%clk 00:30:37]} {[%emt 00:00:07]} 18. h4
{[%clk 00:22:36]} {[%emt 00:05:29]} c5 {[%clk 00:22:46]} {[%emt 00:08:21]} 19.
Nd2 {[%clk 00:16:25]} {[%emt 00:06:42]} c4 {[%clk 00:22:38]} {[%emt 00:00:38]}
20. Nd5 {[%clk 00:10:50]} {[%emt 00:06:05]} c6 {[%clk 00:22:02]} {[%emt
00:01:05]} 21. Nxe7 {[%clk 00:11:08]} {[%emt 00:00:12]} Kxe7 {[%clk 00:22:25]}
{[%emt 00:00:07]} 22. Nb1 {[%clk 00:09:37]} {[%emt 00:02:01]} Bg4 {[%clk
00:21:37]} {[%emt 00:01:18]} 23. Bd2 {[%clk 00:05:25]} {[%emt 00:04:42]} Bf3
{[%clk 00:21:57]} {[%emt 00:00:10]} 24. Bxa5 {[%clk 00:05:37]} {[%emt
00:00:19]} Bxe4 {[%clk 00:21:57]} {[%emt 00:00:29]} 25. Nd2 {[%clk 00:05:58]}
{[%emt 00:00:09]} Bxc2 {[%clk 00:21:50]} {[%emt 00:00:37]} 26. Nxc4 {[%clk
00:06:23]} {[%emt 00:00:05]} Ke6 {[%clk 00:21:46]} {[%emt 00:00:34]} 27. f3
{[%clk 00:06:12]} {[%emt 00:00:40]} f5 {[%clk 00:20:25]} {[%emt 00:01:52]} 28.
Kf2 {[%clk 00:05:28]} {[%emt 00:01:14]} Bd1 {[%clk 00:12:59]} {[%emt 00:07:56]}
29. Bc3 {[%clk 00:04:38]} {[%emt 00:01:20]} g5 {[%clk 00:12:54]} {[%emt
00:00:35]} 30. hxg5 {[%clk 00:02:44]} {[%emt 00:02:24]} hxg5 {[%clk 00:13:18]}
{[%emt 00:00:06]} 31. Ne3 {[%clk 00:01:44]} {[%emt 00:01:31]} Bb3 {[%clk
00:13:41]} {[%emt 00:00:07]} 32. f4 {[%clk 00:01:18]} {[%emt 00:00:56]} exf4
{[%clk 00:12:07]} {[%emt 00:02:04]} 33. gxf4 {[%clk 00:01:40]} {[%emt
00:00:08]} g4 {[%clk 00:12:23]} {[%emt 00:00:13]} 34. Nf1 {[%clk 00:01:20]}
{[%emt 00:00:49]} Nc5 {[%clk 00:11:35]} {[%emt 00:01:19]} 35. Ng3 {[%clk
00:01:10]} {[%emt 00:00:40]} Bc2 {[%clk 00:11:16]} {[%emt 00:00:50]} 36. Ke3
{[%clk 00:01:17]} {[%emt 00:00:22]} Ne4 {[%clk 00:08:01]} {[%emt 00:03:46]} 37.
Nxe4 {[%clk 00:01:20]} {[%emt 00:00:26]} Bxe4 {[%clk 00:08:26]} {[%emt
00:00:06]} 38. Kf2 {[%clk 00:01:21]} {[%emt 00:00:28]} Kd7 {[%clk 00:08:49]}
{[%emt 00:00:07]} 39. Kg3 {[%clk 00:01:41]} 1/2-1/2

[Event "Schack-SM 2022: Sverigemastarklassen"]
[Site "Fyrishov, Idrottsgatan 2, Uppsala, Sweden"]
[Date "2022.07.09"]
[Round "8.3"]
[White "Blomqvist, Erik"]
[Black "Johansson, Linus"]
[Result "1-0"]
[TimeControl "90 minutes for 40 moves + 30 minutes for the rest of the game + 30 seconds per move from move one."]
[WhiteTitle "GM"]
[BlackTitle "IM"]
[WhiteFideId "1709437"]
[BlackFideId "1711113"]
[WhiteElo "2521"]
[BlackElo "2468"]

1. e4 {[%clk 01:30:49]} {[%emt 00:00:11]} e6 {[%clk 01:30:55]} {[%emt
00:00:06]} 2. d4 {[%clk 01:31:14]} {[%emt 00:00:04]} d5 {[%clk 01:31:22]}
{[%emt 00:00:04]} 3. Nc3 {[%clk 01:31:36]} {[%emt 00:00:08]} Bb4 {[%clk
01:31:46]} {[%emt 00:00:06]} 4. e5 {[%clk 01:31:59]} {[%emt 00:00:07]} c5
{[%clk 01:32:12]} {[%emt 00:00:04]} 5. a3 {[%clk 01:32:22]} {[%emt 00:00:07]}
Bxc3+ {[%clk 01:32:38]} {[%emt 00:00:03]} 6. bxc3 {[%clk 01:32:45]} {[%emt
00:00:07]} Ne7 {[%clk 01:33:04]} {[%emt 00:00:04]} 7. Qg4 {[%clk 01:33:07]}
{[%emt 00:00:08]} Qc7 {[%clk 01:33:23]} {[%emt 00:00:11]} 8. Bd3 {[%clk
01:33:20]} {[%emt 00:00:16]} c4 {[%clk 01:33:44]} {[%emt 00:00:10]} 9. Be2
{[%clk 01:33:37]} {[%emt 00:00:12]} Qa5 {[%clk 01:34:09]} {[%emt 00:00:07]} 10.
Bd2 {[%clk 01:33:50]} {[%emt 00:00:16]} Nf5 {[%clk 01:34:34]} {[%emt 00:00:05]}
11. h4 {[%clk 01:33:48]} {[%emt 00:00:31]} Bd7 {[%clk 01:21:26]} {[%emt
00:13:39]} 12. h5 {[%clk 01:31:37]} {[%emt 00:02:42]} h6 {[%clk 01:20:51]}
{[%emt 00:01:05]} 13. a4 {[%clk 01:31:19]} {[%emt 00:00:48]} Nc6 {[%clk
01:20:10]} {[%emt 00:01:11]} 14. Nf3 {[%clk 01:30:22]} {[%emt 00:01:25]} Rg8
{[%clk 01:13:53]} {[%emt 00:06:48]} 15. Nh4 {[%clk 01:28:26]} {[%emt 00:02:27]}
Nfe7 {[%clk 01:14:08]} {[%emt 00:00:14]} 16. Qh3 {[%clk 01:22:37]} {[%emt
00:06:18]} O-O-O {[%clk 01:13:05]} {[%emt 00:01:35]} 17. Bg4 {[%clk 01:19:23]}
{[%emt 00:03:44]} Kb8 {[%clk 01:13:04]} {[%emt 00:00:31]} 18. f4 {[%clk
01:17:01]} {[%emt 00:02:52]} Rde8 {[%clk 00:55:50]} {[%emt 00:17:44]} 19. Qe3
{[%clk 00:59:15]} {[%emt 00:18:15]} g6 {[%clk 00:54:43]} {[%emt 00:01:37]} 20.
Qf2 {[%clk 00:53:37]} {[%emt 00:06:09]} Ka8 {[%clk 00:53:48]} {[%emt 00:01:25]}
21. Nf3 {[%clk 00:49:57]} {[%emt 00:04:10]} Rh8 {[%clk 00:43:23]} {[%emt
00:10:53]} 22. Rh3 {[%clk 00:33:40]} {[%emt 00:16:47]} Nd8 {[%clk 00:43:37]}
{[%emt 00:00:16]} 23. Nh2 {[%clk 00:33:11]} {[%emt 00:00:59]} Bxa4 {[%clk
00:42:16]} {[%emt 00:01:51]} 24. Bd1 {[%clk 00:31:38]} {[%emt 00:02:03]} b5
{[%clk 00:42:27]} {[%emt 00:00:19]} 25. Ng4 {[%clk 00:31:01]} {[%emt 00:01:08]}
Qc7 {[%clk 00:39:54]} {[%emt 00:03:02]} 26. Nf6 {[%clk 00:26:26]} {[%emt
00:05:05]} Ref8 {[%clk 00:39:25]} {[%emt 00:00:59]} 27. g4 {[%clk 00:26:02]}
{[%emt 00:00:54]} Ng8 {[%clk 00:34:16]} {[%emt 00:05:39]} 28. Nxg8 {[%clk
00:08:24]} {[%emt 00:18:08]} Rfxg8 {[%clk 00:26:23]} {[%emt 00:08:22]} 29. Bc1
{[%clk 00:08:49]} {[%emt 00:00:06]} Nc6 {[%clk 00:20:02]} {[%emt 00:06:51]} 30.
Ba3 {[%clk 00:09:06]} {[%emt 00:00:14]} Qd8 {[%clk 00:19:58]} {[%emt 00:00:33]}
31. Kd2 {[%clk 00:08:02]} {[%emt 00:01:33]} f6 {[%clk 00:17:44]} {[%emt
00:02:45]} 32. hxg6 {[%clk 00:05:53]} {[%emt 00:02:39]} Rxg6 {[%clk 00:17:03]}
{[%emt 00:01:11]} 33. Bd6 {[%clk 00:05:08]} {[%emt 00:01:16]} Qg8 {[%clk
00:13:22]} {[%emt 00:04:10]} 34. Bf3 {[%clk 00:05:05]} {[%emt 00:00:33]} Rxg4
{[%clk 00:12:25]} {[%emt 00:01:27]} 35. exf6 {[%clk 00:04:43]} {[%emt
00:00:52]} Rg6 {[%clk 00:05:36]} {[%emt 00:07:20]} 36. Be5 {[%clk 00:05:10]}
{[%emt 00:00:03]} Qf8 {[%clk 00:05:19]} {[%emt 00:00:46]} 37. f5 {[%clk
00:04:17]} {[%emt 00:01:24]} Rxf6 {[%clk 00:05:22]} {[%emt 00:00:26]} 38. Bxf6
{[%clk 00:04:07]} {[%emt 00:00:40]} Qxf6 {[%clk 00:05:45]} {[%emt 00:00:07]} 39.
Rh5 {[%clk 00:02:23]} {[%emt 00:02:14]} Ne7 {[%clk 00:05:33]} {[%emt 00:00:42]}
40. Re1 {[%clk 00:02:13]} {[%emt 00:00:39]} exf5 {[%clk 00:02:09]} {[%emt
00:03:55]} 41. Qe3 {[%clk 00:28:57]} {[%emt 00:03:45]} Rh7 {[%clk 00:27:33]}
{[%emt 00:05:06]} 42. Qe6 {[%clk 00:28:52]} {[%emt 00:00:36]} Qxe6 {[%clk
00:21:45]} {[%emt 00:06:19]} 43. Rxe6 {[%clk 00:29:05]} {[%emt 00:00:16]} Kb7
{[%clk 00:22:13]} {[%emt 00:00:02]} 44. Rexh6 {[%clk 00:28:37]} {[%emt
00:00:58]} Rxh6 {[%clk 00:22:37]} {[%emt 00:00:06]} 45. Rxh6 {[%clk 00:29:04]}
{[%emt 00:00:03]} Kc7 {[%clk 00:22:37]} {[%emt 00:00:30]} 46. Ra6 {[%clk
00:29:14]} {[%emt 00:00:19]} Kd7 {[%clk 00:20:49]} {[%emt 00:02:19]} 47. Rxa7+
{[%clk 00:29:28]} {[%emt 00:00:17]} Ke6 {[%clk 00:20:51]} {[%emt 00:00:27]} 48.
Ra6+ {[%clk 00:29:37]} {[%emt 00:00:21]} Kd7 {[%clk 00:21:14]} {[%emt
00:00:07]} 49. Rf6 {[%clk 00:29:16]} {[%emt 00:00:51]} Kc7 {[%clk 00:21:36]}
{[%emt 00:00:08]} 50. Kc1 {[%clk 00:27:42]} {[%emt 00:02:04]} Kd7 {[%clk
00:17:05]} {[%emt 00:05:01]} 51. Kb2 {[%clk 00:27:48]} {[%emt 00:00:24]} Kc7
{[%clk 00:17:30]} {[%emt 00:00:06]} 52. Bd1 {[%clk 00:27:57]} {[%emt 00:00:21]}
Kd7 {[%clk 00:15:23]} {[%emt 00:02:37]} 53. Ka3 {[%clk 00:28:00]} {[%emt
00:00:26]} Kc8 {[%clk 00:15:35]} {[%emt 00:00:18]} 54. Kb4 {[%clk 00:28:05]}
{[%emt 00:00:24]} Kc7 {[%clk 00:16:00]} {[%emt 00:00:06]} 55. Kc5 {[%clk
00:28:18]} {[%emt 00:00:17]} Kd7 {[%clk 00:16:26]} {[%emt 00:00:04]} 56. Ra6
{[%clk 00:27:41]} {[%emt 00:01:07]} Kc7 {[%clk 00:14:53]} {[%emt 00:02:03]} 57.
Rh6 {[%clk 00:27:59]} {[%emt 00:00:12]} Kd7 {[%clk 00:14:28]} {[%emt 00:00:55]}
58. Ra6 {[%clk 00:26:25]} {[%emt 00:02:04]} Kc7 {[%clk 00:14:48]} {[%emt
00:00:10]} 59. Rd6 {[%clk 00:26:33]} {[%emt 00:00:21]} Kc8 {[%clk 00:14:37]}
{[%emt 00:00:42]} 60. Kb6 {[%clk 00:26:38]} {[%emt 00:00:25]} Kb8 {[%clk
00:14:52]} {[%emt 00:00:14]} 61. Rd8+ {[%clk 00:25:58]} {[%emt 00:01:10]} Nc8+
{[%clk 00:15:17]} {[%emt 00:00:06]} 62. Kc5 {[%clk 00:26:18]} {[%emt 00:00:09]}
1-0

[Event "Schack-SM 2022: Sverigemastarklassen"]
[Site "Fyrishov, Idrottsgatan 2, Uppsala, Sweden"]
[Date "2022.07.09"]
[Round "8.4"]
[White "Westerberg, Jonathan"]
[Black "Seo, Jung Min"]
[Result "1/2-1/2"]
[TimeControl "90 minutes for 40 moves + 30 minutes for the rest of the game + 30 seconds per move from move one."]
[WhiteTitle "GM"]
[BlackTitle "IM"]
[WhiteFideId "1701754"]
[BlackFideId "1734687"]
[WhiteElo "2476"]
[BlackElo "2492"]

1. e4 {[%clk 01:30:52]} {[%emt 00:00:05]} e5 {[%clk 01:30:40]} {[%emt
00:00:24]} 2. Nf3 {[%clk 01:31:10]} {[%emt 00:00:11]} Nc6 {[%clk 01:31:08]}
{[%emt 00:00:03]} 3. d4 {[%clk 01:26:32]} {[%emt 00:05:08]} exd4 {[%clk
01:31:22]} {[%emt 00:00:15]} 4. Nxd4 {[%clk 01:26:32]} {[%emt 00:00:30]} Nf6
{[%clk 01:31:24]} {[%emt 00:00:29]} 5. Nxc6 {[%clk 01:24:39]} {[%emt 00:02:22]}
bxc6 {[%clk 01:31:44]} {[%emt 00:00:10]} 6. Qe2 {[%clk 01:23:26]} {[%emt
00:01:43]} Qe7 {[%clk 01:17:54]} {[%emt 00:14:20]} 7. e5 {[%clk 01:13:11]}
{[%emt 00:10:45]} Nd5 {[%clk 01:17:45]} {[%emt 00:00:40]} 8. h4 {[%clk
01:13:00]} {[%emt 00:00:41]} a5 {[%clk 01:11:37]} {[%emt 00:06:37]} 9. c4
{[%clk 01:04:02]} {[%emt 00:09:28]} Nb6 {[%clk 01:06:25]} {[%emt 00:05:42]} 10.
Nc3 {[%clk 00:44:24]} {[%emt 00:20:09]} Ba6 {[%clk 00:56:12]} {[%emt 00:10:41]}
11. b3 {[%clk 00:43:04]} {[%emt 00:01:51]} Qe6 {[%clk 00:54:19]} {[%emt
00:02:22]} 12. Bd2 {[%clk 00:30:47]} {[%emt 00:12:48]} Bb4 {[%clk 00:50:41]}
{[%emt 00:04:07]} 13. f4 {[%clk 00:28:21]} {[%emt 00:02:58]} O-O {[%clk
00:46:53]} {[%emt 00:04:17]} 14. Ne4 {[%clk 00:27:44]} {[%emt 00:01:07]} d6
{[%clk 00:42:56]} {[%emt 00:04:28]} 15. Ng5 {[%clk 00:18:49]} {[%emt 00:09:24]}
Qe7 {[%clk 00:39:19]} {[%emt 00:04:05]} 16. Bxb4 {[%clk 00:14:56]} {[%emt
00:04:26]} axb4 {[%clk 00:39:21]} {[%emt 00:00:27]} 17. Qe4 {[%clk 00:13:10]}
{[%emt 00:02:16]} f5 {[%clk 00:32:05]} {[%emt 00:07:46]} 18. Qxc6 {[%clk
00:13:24]} {[%emt 00:00:16]} Rfe8 {[%clk 00:19:42]} {[%emt 00:12:53]} 19. c5
{[%clk 00:08:07]} {[%emt 00:05:47]} dxe5 {[%clk 00:15:33]} {[%emt 00:04:40]} 20.
Bxa6 {[%clk 00:06:50]} {[%emt 00:01:47]} exf4+ {[%clk 00:15:59]} {[%emt
00:00:03]} 21. Kf1 {[%clk 00:07:07]} {[%emt 00:00:13]} Rxa6 {[%clk 00:16:23]}
{[%emt 00:00:06]} 22. Nf3 {[%clk 00:07:24]} {[%emt 00:00:13]} Qe2+ {[%clk
00:11:15]} {[%emt 00:05:38]} 23. Kg1 {[%clk 00:07:52]} {[%emt 00:00:02]} Na8
{[%clk 00:11:08]} {[%emt 00:00:37]} 24. Qd5+ {[%clk 00:05:27]} {[%emt
00:02:56]} Qe6 {[%clk 00:11:13]} {[%emt 00:00:24]} 25. Qd4 {[%clk 00:05:14]}
{[%emt 00:00:41]} Qe3+ {[%clk 00:11:02]} {[%emt 00:00:43]} 26. Kh2 {[%clk
00:05:27]} {[%emt 00:00:18]} Qxd4 {[%clk 00:11:01]} {[%emt 00:00:31]} 27. Nxd4
{[%clk 00:05:54]} {[%emt 00:00:03]} g6 {[%clk 00:10:37]} {[%emt 00:00:54]} 28.
Rhc1 {[%clk 00:05:35]} {[%emt 00:00:49]} c6 {[%clk 00:07:36]} {[%emt 00:03:31]}
29. Rc4 {[%clk 00:05:44]} {[%emt 00:00:20]} Nc7 {[%clk 00:05:47]} {[%emt
00:02:20]} 30. Rxb4 {[%clk 00:05:59]} {[%emt 00:00:15]} Nd5 {[%clk 00:05:26]}
{[%emt 00:00:51]} 31. Ra4 {[%clk 00:03:59]} {[%emt 00:02:29]} Rxa4 {[%clk
00:05:53]} {[%emt 00:00:04]} 32. bxa4 {[%clk 00:04:27]} {[%emt 00:00:02]} Re4
{[%clk 00:05:27]} {[%emt 00:00:55]} 33. Nxc6 {[%clk 00:04:55]} {[%emt
00:00:02]} Rxa4 {[%clk 00:05:50]} {[%emt 00:00:08]} 34. Rd1 {[%clk 00:01:59]}
{[%emt 00:03:25]} Ne3 {[%clk 00:06:02]} {[%emt 00:00:19]} 35. Rd8+ {[%clk
00:02:04]} {[%emt 00:00:24]} Kg7 {[%clk 00:06:24]} {[%emt 00:00:05]} 36. Rd7+
{[%clk 00:01:16]} {[%emt 00:01:20]} Kf6 {[%clk 00:06:47]} {[%emt 00:00:07]} 37.
Rd6+ {[%clk 00:01:35]} {[%emt 00:00:13]} Kg7 {[%clk 00:07:12]} {[%emt
00:00:05]} 38. Rd7+ {[%clk 00:02:00]} {[%emt 00:00:05]} Kf6 {[%clk 00:06:01]}
{[%emt 00:01:41]} 39. Rd6+ {[%clk 00:01:43]} {[%emt 00:00:47]} Kg7 {[%clk
00:06:26]} {[%emt 00:00:04]} 40. Rd7+ {[%clk 00:02:04]} {[%emt 00:00:09]} Kf6
{[%clk 00:06:22]} {[%emt 00:00:34]} 1/2-1/2

[Event "Schack-SM 2022: Sverigemastarklassen"]
[Site "Fyrishov, Idrottsgatan 2, Uppsala, Sweden"]
[Date "2022.07.09"]
[Round "8.5"]
[White "Jogstad, Martin"]
[Black "Smith, Axel"]
[Result "1/2-1/2"]
[TimeControl "90 minutes for 40 moves + 30 minutes for the rest of the game + 30 seconds per move from move one."]
[WhiteTitle "FM"]
[BlackTitle "GM"]
[WhiteFideId "1715364"]
[BlackFideId "1707930"]
[WhiteElo "2384"]
[BlackElo "2417"]

1. d4 {[%clk 01:30:44]} {[%emt 00:00:14]} Nf6 {[%clk 01:30:58]} {[%emt
00:00:04]} 2. c4 {[%clk 01:31:03]} {[%emt 00:00:10]} e6 {[%clk 01:31:26]}
{[%emt 00:00:03]} 3. Nc3 {[%clk 01:31:24]} {[%emt 00:00:07]} d5 {[%clk
01:31:53]} {[%emt 00:00:05]} 4. cxd5 {[%clk 01:31:34]} {[%emt 00:00:20]} exd5
{[%clk 01:32:20]} {[%emt 00:00:03]} 5. Bg5 {[%clk 01:31:54]} {[%emt 00:00:09]}
Be7 {[%clk 01:32:36]} {[%emt 00:00:15]} 6. e3 {[%clk 01:31:34]} {[%emt
00:00:50]} h6 {[%clk 01:32:39]} {[%emt 00:00:27]} 7. Bf4 {[%clk 01:30:55]}
{[%emt 00:01:08]} O-O {[%clk 01:31:11]} {[%emt 00:01:59]} 8. Bd3 {[%clk
01:30:51]} {[%emt 00:00:34]} c5 {[%clk 01:26:02]} {[%emt 00:05:39]} 9. dxc5
{[%clk 01:23:35]} {[%emt 00:07:45]} Bxc5 {[%clk 01:26:30]} {[%emt 00:00:03]} 10.
Nf3 {[%clk 01:21:40]} {[%emt 00:02:24]} Nc6 {[%clk 01:26:58]} {[%emt 00:00:03]}
11. O-O {[%clk 01:20:39]} {[%emt 00:01:28]} a6 {[%clk 01:14:40]} {[%emt
00:12:51]} 12. Rc1 {[%clk 01:16:29]} {[%emt 00:04:39]} Bd6 {[%clk 01:04:35]}
{[%emt 00:10:36]} 13. Bxd6 {[%clk 01:15:03]} {[%emt 00:01:55]} Qxd6 {[%clk
01:04:54]} {[%emt 00:00:12]} 14. h3 {[%clk 01:14:50]} {[%emt 00:00:41]} Be6
{[%clk 01:02:08]} {[%emt 00:03:17]} 15. Ne2 {[%clk 01:11:20]} {[%emt 00:03:59]}
Rac8 {[%clk 00:58:28]} {[%emt 00:04:12]} 16. Bb1 {[%clk 01:03:51]} {[%emt
00:07:58]} Ne5 {[%clk 00:56:14]} {[%emt 00:02:44]} 17. Nxe5 {[%clk 00:56:48]}
{[%emt 00:07:34]} Qxe5 {[%clk 00:54:58]} {[%emt 00:01:46]} 18. Qd2 {[%clk
00:49:26]} {[%emt 00:07:50]} Rxc1 {[%clk 00:52:13]} {[%emt 00:03:17]} 19. Rxc1
{[%clk 00:47:53]} {[%emt 00:02:02]} Rc8 {[%clk 00:52:37]} {[%emt 00:00:06]} 20.
Rxc8+ {[%clk 00:40:06]} {[%emt 00:08:18]} Bxc8 {[%clk 00:53:06]} {[%emt
00:00:01]} 21. Qc2 {[%clk 00:39:27]} {[%emt 00:01:08]} Bd7 {[%clk 00:46:20]}
{[%emt 00:07:18]} 22. Nd4 {[%clk 00:37:31]} {[%emt 00:02:25]} Qd6 {[%clk
00:45:13]} {[%emt 00:01:37]} 23. Qc3 {[%clk 00:32:39]} {[%emt 00:05:21]} g6
{[%clk 00:39:43]} {[%emt 00:06:01]} 24. Bd3 {[%clk 00:30:45]} {[%emt 00:02:23]}
Ne8 {[%clk 00:28:35]} {[%emt 00:11:38]} 25. Nf3 {[%clk 00:24:17]} {[%emt
00:06:58]} Nf6 {[%clk 00:10:11]} {[%emt 00:18:55]} 26. Ne5 {[%clk 00:23:37]}
{[%emt 00:01:08]} Be8 {[%clk 00:09:22]} {[%emt 00:01:20]} 27. Qd4 {[%clk
00:22:53]} {[%emt 00:01:15]} Nd7 {[%clk 00:08:50]} {[%emt 00:01:02]} 28. Nxd7
{[%clk 00:14:03]} {[%emt 00:09:20]} Bxd7 {[%clk 00:09:18]} {[%emt 00:00:02]} 29.
Bc4 {[%clk 00:11:26]} {[%emt 00:03:06]} Bc6 {[%clk 00:06:48]} {[%emt 00:03:01]}
30. Bb3 {[%clk 00:11:53]} {[%emt 00:00:03]} Qe6 {[%clk 00:06:31]} {[%emt
00:00:46]} 31. f3 {[%clk 00:11:21]} {[%emt 00:01:01]} Qf5 {[%clk 00:05:57]}
{[%emt 00:01:05]} 32. Kf2 {[%clk 00:10:56]} {[%emt 00:00:54]} h5 {[%clk
00:05:49]} {[%emt 00:00:39]} 33. g4 {[%clk 00:09:56]} {[%emt 00:01:29]} hxg4
{[%clk 00:06:11]} {[%emt 00:00:09]} 34. hxg4 {[%clk 00:10:21]} {[%emt
00:00:05]} Qg5 {[%clk 00:05:13]} {[%emt 00:01:29]} 35. Kg3 {[%clk 00:10:40]}
{[%emt 00:00:10]} Qe7 {[%clk 00:05:02]} {[%emt 00:00:41]} 36. Qf4 {[%clk
00:07:44]} {[%emt 00:03:26]} a5 {[%clk 00:04:11]} {[%emt 00:01:22]} 37. Kf2
{[%clk 00:06:10]} {[%emt 00:02:02]} Qh4+ {[%clk 00:04:00]} {[%emt 00:00:43]} 38.
Kg2 {[%clk 00:06:20]} {[%emt 00:00:19]} Qe7 {[%clk 00:03:45]} {[%emt 00:00:46]}
39. a3 {[%clk 00:05:55]} {[%emt 00:00:54]} Qc5 {[%clk 00:02:36]} {[%emt
00:01:39]} 40. Qb8+ {[%clk 00:01:07]} {[%emt 00:05:18]} Kh7 {[%clk 00:01:08]}
{[%emt 00:01:58]} 41. Qh2+ {[%clk 00:00:52]} {[%emt 00:00:45]} Kg8 {[%clk
00:29:50]} {[%emt 00:01:49]} 42. Qb8+ {[%clk 00:30:34]} {[%emt 00:00:47]} Kh7
{[%clk 00:26:35]} {[%emt 00:03:45]} 43. Qf4 {[%clk 00:26:23]} {[%emt 00:04:40]}
Kg8 {[%clk 00:25:54]} {[%emt 00:01:13]} 44. Qb8+ {[%clk 00:03:24]} {[%emt
00:23:27]} Kh7 {[%clk 00:24:47]} {[%emt 00:01:38]} 45. Qh2+ {[%clk 00:03:48]}
{[%emt 00:00:06]} Kg8 {[%clk 00:24:07]} {[%emt 00:01:10]} 1/2-1/2